[Event "Serbian League Women 2024"]
[Site "Bajina Basta"]
[Date "2024.10.02"]
[Round "6.1"]
[White "Savitha Shri B"]
[Black "Muetsch, Annmarie"]
[Result "1/2-1/2"]
[ECO "A46"]
[WhiteElo "2348"]
[BlackElo "2290"]
[Annotator "TA"]
[PlyCount "132"]
[EventDate "2024.09.26"]
[EventType "team-tourn"]
[EventCountry "SRB"]
[SourceTitle "playchess.com"]
[Source "ChessBase"]
[SourceQuality "1"]
[TimeControl "40/5400+30:1800+30"]

{[%evp 44,132,127,100,136,121,139,136,137,83,76,82,89,82,108,80,79,35,181,195,210,207,240,222,214,233,731,86,79,20,58,48,46,39,63,68,79,81,99,82,4618,47,40,8,8,8,8,8,8,8,8,0,8,0,0,0,0,0,1,1,1,0,0,0,0,0,8,8,8,0,0,0,0,0,0,0,0,0,0,0,0,0,0,0,0,0,0,0,0,0,0]} 1. d4 {[%emt 0:00:15]} d6 {[%emt 0:00:25]} 2. Nf3 {[%emt 0:01:58]} Nf6 {[%emt 0:00:22]} 3. Nc3 {[%emt 0:01:28]} Nbd7 {[%emt 0:00:58]} 4. Bf4 {[%emt 0:04:01]} c5 {[%emt 0:02:28]} 5. d5 {[%emt 0:02:54]} g6 {[%emt 0:04:07]} 6. Qd2 {[%emt 0:02:54] A46: 1 d4 Nf6 2 Nf3 e6: Torre, London and Colle Systems.} Qa5 {[%emt 0:05:17]} 7. e4 {[%emt 0:10:44]} Bg7 {[%emt 0:04:38]} 8. Bd3 {[%emt 0:04:10]} a6 {[%emt 0:09:23]} 9. a4 {[%emt 0:08:28]} Ng4 $146 {[%emt 0:04:58]} ({Predecessor:} 9... b5 10. O-O c4 11. axb5 Qb4 12. Ra4 Qc5 13. Rxc4 Qa7 14. Ra1 O-O 15. h3 Nc5 {1-0 Moroni,L (2584)-Suarez Uriel,A (2363) Titled Tuesday intern op 12th Apr Late blitz 2022 (1)}) 10. O-O {[%emt 0:03:27]} Nde5 {[%emt 0:03:06]} 11. Nxe5 {[%emt 0:00:18]} Nxe5 {[%emt 0:00:49]} 12. Bh6 {[%emt 0:00:17]} Bf6 {[%emt 0:01:21]} 13. Bg5 {[%emt 0:01:53]} Bxg5 {[%emt 0:08:12]} 14. Qxg5 {[%emt 0:00:06]} h6 {[%emt 0:00:28]} 15. Qg3 {[%emt 0:00:57]} g5 {[%emt 0:05:54]} 16. Nd1 {[%emt 0:03:16]} Qd2 {[%emt 0:19:35]} 17. Ne3 {[%emt 0:02:33]} Bd7 {[%emt 0:04:19]} 18. Ra3 {[%emt 0:08:38]} f6 {[%emt 0:04:18]} 19. Rc3 {[%emt 0:01:27]} Nxd3 {[%emt 0:06:17]} 20. Rxd3 {[%emt 0:01:18]} Qb4 {[%emt 0:00:24]} 21. Qf3 {[%emt 0:01:30]} Bxa4 {[%emt 0:02:17]} 22. Nf5 {[%emt 0:15:57]} O-O-O $2 {[%emt 0:00:12]} (22... Qxb2 23. e5 $11 (23. Qh5+ $2 Kd7 $17)) (22... Bxc2 $17 {stays on course.}) 23. Nxe7+ {[%emt 0:00:34]} Kb8 {[%emt 0:00:11]} 24. b3 $1 {[%emt 0:01:31]} (24. Qxf6 Rhf8 25. Qg7 (25. Qxh6 Qxe4 26. Re3 Qxc2 $17) 25... Qxe4 $15) 24... c4 {[%emt 0:00:50]} 25. Rd4 {[%emt 0:02:50]} Qb6 {[%emt 0:00:34]} 26. Qxf6 {[%emt 0:07:05]} (26. Rxc4 $6 Bb5 $14) (26. Rfd1 $142 $1 Bd7 27. Rxc4 (27. bxc4 Rhf8 $16)) 26... Rhf8 $16 {[%emt 0:00:53]} 27. Qg7 {[%emt 0:00:08]} (27. Qxh6 $2 Qxd4 28. bxa4 Qxe4 $19) 27... cxb3 {[%emt 0:04:04]} 28. cxb3 {[%emt 0:00:43]} (28. Rxa4 $2 b2 $19) 28... Bd7 {[%emt 0:08:10]} 29. Rfd1 {[%emt 0:03:27]} (29. Rc1 {keeps more tension.} Rde8 30. Rd2 Rf4 31. e5) 29... Qxb3 {[%emt 0:00:00]} 30. h3 {[%emt 0:01:51]} (30. Qxh6 $6 Bg4 31. Rf1 Qb2 $15) 30... Rfe8 {[%emt 0:00:00]} (30... Qc2 $14 31. f3 (31. Qxh6 $2 Qxf2+ 32. Kh2 Qf4+ 33. Kh1 Bxh3 $19) 31... Qc3) 31. Qxh6 $18 {[%emt 0:01:45]} Bxh3 {[%emt 0:00:00]} 32. R4d3 {[%emt 0:02:21]} (32. Qxg5 Rd7) (32. gxh3 Rxe7 33. R4d3 (33. Qxg5 $2 Qxh3 34. R4d3 Qh7 $19) 33... Qb6 $15) 32... Qa4 {[%emt 0:00:00]} 33. Nc6+ $1 {[%emt 0:01:06]} (33. Qxg5 Qxe4 34. Re3 (34. Nc6+ bxc6 35. Rxh3 Rg8 $11) 34... Qc2 $11 (34... Qg4 35. Qxg4 Bxg4 36. Rd4 $14)) (33. gxh3 Rxe7 34. Qxg5 (34. Rd4 Qd7 $15) 34... Qxe4 $11) 33... bxc6 {[%emt 0:00:01]} 34. Qxh3 {[%emt 0:00:04]} Rxe4 $2 {[%emt 0:01:08] [#]} (34... g4 35. Rb3+ (35. Qxg4 Rxe4 36. Rb1+ Ka8 $18) 35... Ka8) 35. dxc6 $2 {[%emt 0:00:09]} (35. Rb1+ $1 $18 {and the rest is easy.} Ka8 36. Ra3) 35... Qxc6 $16 {[%emt 0:00:22]} 36. Qg3 {[%emt 0:01:49]} (36. Qf5 $16) 36... Ka8 {[%emt 0:00:36]} 37. Rc3 {[%emt 0:03:25]} ({Of course not} 37. Rxd6 Rxd6 38. Qxd6 Qxd6 39. Rxd6 Kb7 $11) 37... Qb7 {[%emt 0:00:26]} 38. Rb3 {[%emt 0:01:01]} (38. Rxd6 $2 {is the wrong capture.} Re1+ 39. Kh2 Rh8+ $19 (39... Qh7+ $2 40. Qh3 $19) (39... Qh7+ $2 40. Qh3 $19)) 38... Qc6 {[%emt 0:01:32]} 39. Qxg5 {[%emt 0:00:12]} Rde8 {[%emt 0:00:12]} 40. Rbb1 {[%emt 0:00:10]} R4e5 {[%emt 0:00:37]} 41. Qg7 {[%emt 0:03:28]} Rh5 $2 {[%emt 0:09:03][%mdl 8192] [#]} (41... Rb8 $16) 42. Rbc1 $2 {[%emt 0:07:32]} (42. Rxd6 $1 $18 Rg5 43. Rxc6 Rxg7 44. Rxa6+ Ra7 45. Rxa7+ Kxa7 46. g3) 42... Qb7 $14 {[%emt 0:02:36]} 43. Rc7 {[%emt 0:05:39]} (43. Qxb7+ {simplifies} Kxb7 44. g4 Rg8 45. f3) 43... Reh8 $1 {[%emt 0:02:39]} 44. Qxh8+ {[%emt 0:00:07]} (44. Rxb7 $2 Rh1#) 44... Rxh8 {[%emt 0:00:06]} 45. Rxb7 {[%emt 0:00:02]} Kxb7 {[%emt 0:00:05]} 46. Rxd6 {[%emt 0:00:02]} a5 {[%emt 0:01:18]} 47. g4 {[%emt 0:01:44]} Rg8 {[%emt 0:00:30]} 48. f3 {[%emt 0:00:06]} a4 {[%emt 0:01:09]} 49. Rd3 {[%emt 0:05:43]} Ra8 {[%emt 0:08:07]} 50. Ra3 {[%emt 0:00:58]} Kb6 {[%emt 0:00:04]} 51. Kf2 {[%emt 0:03:07]} Kc5 {[%emt 0:00:56]} 52. g5 {[%emt 0:03:42]} Kb4 {[%emt 0:02:38]} 53. Ra1 {[%emt 0:00:01]} a3 {[%emt 0:00:05]} 54. f4 {[%emt 0:00:40]} a2 {[%emt 0:00:05]} 55. Kf3 {[%emt 0:00:43]} (55. g6 {feels hotter.} Kc5 56. g7 Kd6 57. Kf3) 55... Kc5 $1 {[%emt 0:01:16]} 56. Kg4 {[%emt 0:01:46]} (56. Ke4 $5 Kd6 $8 57. Kd4 $11) 56... Kd6 {[%emt 0:00:10]} 57. Kh5 {[%emt 0:01:15]} Ke7 {[%emt 0:00:09]} 58. Kh6 {[%emt 0:01:14]} Ra3 {[%emt 0:01:22]} 59. Kg7 {[%emt 0:00:33]} Ra5 {[%emt 0:01:46]} 60. g6 {[%emt 0:01:56]} Ke6 {[%emt 0:00:06]} 61. f5+ {[%emt 0:01:21]} Kxf5 {[%emt 0:00:16]} 62. Kh7 {[%emt 0:00:01]} Kf6 {[%emt 0:02:24]} 63. g7 {[%emt 0:00:32]} Rh5+ {[%emt 0:01:34]} 64. Kg8 {[%emt 0:00:03]} Rg5 {[%emt 0:00:05]} 65. Rf1+ {[%emt 0:00:26]} Rf5 {[%emt 0:01:11]} 66. Ra1 {[%emt 0:00:24]} Rg5 {[%emt 0:00:08]} 1/2-1/2

[Event "Serbian League Women 2024"]
[Site "Bajina Basta"]
[Date "2024.10.02"]
[Round "6.2"]
[White "Brunello, Marina"]
[Black "Toncheva, Nadya"]
[Result "0-1"]
[ECO "B38"]
[WhiteElo "2348"]
[BlackElo "2301"]
[Annotator "TA"]
[PlyCount "114"]
[EventDate "2024.09.26"]
[EventType "team-tourn"]
[EventCountry "SRB"]
[SourceTitle "playchess.com"]
[Source "ChessBase"]
[SourceQuality "1"]
[TimeControl "40/5400+30:1800+30"]

{[%evp 19,114,41,35,28,67,62,59,19,29,-10,14,-25,0,0,0,0,0,-24,22,-44,0,0,0,0,26,-84,-17,0,-27,-41,-49,-45,-42,-95,-29,-42,0,0,515,-26,-29,-25,-26,-27,-27,-27,-20,-20,-20,-74,-83,-108,-105,-75,-70,-180,-181,-172,-179,-414,-438,-407,-200,-211,-209,-215,-208,-285,-277,-321,-314,-291,-291,-322,-190,-256,-220,-244,-242,-402,-115,-160,-265,-225,-112,-117,-132,-4814,-4410,-4802,-3076,-29949,-12830,-12502,-6046,-4133,-1452]} 1. e4 {[%emt 0:00:03]} c5 {[%emt 0:00:05]} 2. Nf3 {[%emt 0:00:09]} Nc6 {[%emt 0:00:05]} 3. d4 {[%emt 0:00:04]} cxd4 {[%emt 0:00:03]} 4. Nxd4 {[%emt 0:00:02]} g6 {[%emt 0:00:06]} 5. c4 {[%emt 0:00:03]} Bg7 {[%emt 0:00:04]} 6. Be3 {[%emt 0:00:06]} Nf6 {[%emt 0:00:04]} 7. Nc3 {[%emt 0:00:03]} O-O {[%emt 0:00:06]} 8. Be2 {[%emt 0:00:12]} d6 {[%emt 0:00:05]} 9. O-O {[%emt 0:00:05]} Bd7 {[%emt 0:00:03]} 10. Nc2 {[%emt 0:00:08]} Rc8 {[%emt 0:01:04]} 11. Rc1 {[%emt 0:02:29]} Be6 {[%emt 0:03:49]} 12. f4 {[%emt 0:04:02]} a6 {[%emt 0:05:51][%cal Ob7b5]} 13. Na3 {[%emt 0:08:47] White is slightly better.} Qa5 {[%emt 0:03:54]} (13... Nxe4 {seems wilder.} 14. Nxe4 Bxb2 15. Qb3 Bxc1 16. Rxc1 b5) 14. Qd2 {[%emt 0:06:04]} Nd7 {[%emt 0:11:14]} (14... Nxe4 $5 15. Nxe4 Qxd2 16. Bxd2 (16. Nxd2 Bxb2 17. Nab1 b5 $11) 16... Bxb2 $11) 15. Kh1 {[%emt 0:15:19][%cal Of4f5]} f5 {[%emt 0:02:12]} 16. exf5 {[%emt 0:02:49]} Bxf5 {[%emt 0:00:24]} 17. Nab1 {[%emt 0:08:36]} Nc5 {[%emt 0:05:12]} 18. Qd5+ {[%emt 0:02:23]} Be6 {[%emt 0:03:13]} (18... e6 $142 19. Qd2 e5) 19. Qg5 {[%emt 0:00:49]} ({White should play} 19. Qd1 $11) 19... Bf6 {[%emt 0:00:58]} 20. Qg3 {[%emt 0:00:57]} Kh8 {[%emt 0:17:06]} 21. Rcd1 {[%emt 0:01:35]} Qb4 {[%emt 0:08:29]} 22. Nd5 {[%emt 0:00:17]} (22. b3 $11) 22... Bxd5 {[%emt 0:00:09]} (22... Qxb2 $17 23. Bg4 Bxg4 (23... Qxa2 24. Bxe6 Nxe6 25. Qh3 $15) 24. Qxg4 Qxa2) 23. cxd5 $11 {[%emt 0:00:53]} Nd4 {[%emt 0:03:09]} 24. Bg4 {[%emt 0:06:33]} Nf5 {[%emt 0:01:26]} 25. Bxf5 {[%emt 0:00:33]} gxf5 {[%emt 0:00:05]} 26. b3 {[%emt 0:00:04]} Rg8 {[%emt 0:04:34]} ({Black should try} 26... Qa5 $17 27. Nd2 Qxa2) 27. Qh3 {[%emt 0:12:22]} Rg4 {[%emt 0:00:24]} 28. Nd2 {[%emt 0:00:05]} Ne4 $2 {[%emt 0:05:14][%mdl 8192] [#]} (28... Rcg8 $11 29. Nf3 Ne4) 29. Nxe4 $2 {[%emt 0:02:37]} (29. a3 $1 $18 {[%cal Ra3b4]} Ng3+ 30. hxg3) 29... Qxe4 {[%emt 0:00:43]} 30. Qf3 {[%emt 0:00:03]} Qxf3 {[%emt 0:04:34]} 31. gxf3 {[%emt 0:05:56]} Rgg8 $36 {[%emt 0:00:57][%mdl 2048] White is under pressure.} 32. Rc1 {[%emt 0:00:05]} Rgd8 {[%emt 0:05:39]} 33. Bb6 {[%emt 0:01:54]} Re8 {[%emt 0:01:01]} 34. Bc7 {[%emt 0:00:22]} (34. Rg1 $11 {remains equal.}) 34... Bd4 $17 {[%emt 0:05:43]} 35. Rfe1 {[%emt 0:08:10]} Kg7 {[%emt 0:01:05]} 36. Rc4 {[%emt 0:01:01]} Kf7 {[%emt 0:01:35]} 37. Rec1 {[%emt 0:04:24]} (37. Rxd4 $15 Rxc7 38. Rd3) 37... Be3 $19 {[%emt 0:00:36]} 38. R1c3 {[%emt 0:02:18]} Ba7 {[%emt 0:02:50] [#] Strongly threatening ...Rg8.} 39. a4 $2 {[%emt 0:04:55]} (39. Rc2) 39... Rg8 {[%emt 0:01:06]} 40. Rc1 {[%emt 0:00:05] Wards off Rg1+} Be3 {[%emt 0:04:20]} (40... Rg7 $142 41. Rf1 Rcg8) 41. Re1 {[%emt 0:30:04]} b5 {[%emt 0:30:15]} 42. Rc6 {[%emt 0:00:33]} Bxf4 {[%emt 0:01:20]} 43. a5 {[%emt 0:01:00]} h5 {[%emt 0:00:00]} 44. Bb6 {[%emt 0:00:00]} Rxc6 {[%emt 0:00:00]} 45. dxc6 {[%emt 0:00:00][%mdl 4096] Endgame. KRB-KRB} e5 {[%emt 0:00:00]} (45... Rc8 46. c7 $19) 46. Re2 {[%emt 0:00:00]} Ke6 {[%emt 0:00:00]} (46... d5 $142 {Hoping for ...d4.} 47. c7 d4) 47. Rc2 {[%emt 0:00:00]} (47. h4 $142) 47... h4 {[%emt 0:00:00] aiming for ...h3.} (47... Rc8 48. c7 $17) 48. h3 {[%emt 0:00:00]} e4 {[%emt 0:00:00]} ({Don't do} 48... Rc8 49. Kg2 $17) 49. Bf2 $2 {[%emt 0:00:00]} (49. fxe4 fxe4 50. c7) 49... Bg3 $2 {[%emt 0:00:00]} (49... exf3 $19 50. Ba7 Ke5) 50. Bxg3 $17 {[%emt 0:00:00]} hxg3 {[%emt 0:00:00]} (50... Rxg3 $2 {too greedy.} 51. c7 Rxh3+ 52. Kg2 Rg3+ 53. Kf2 $18 (53. Kh2 Rg8 $18)) 51. fxe4 {[%emt 0:00:00]} fxe4 {[%emt 0:00:00] KR-KR} 52. Kg2 {[%emt 0:00:00]} d5 {[%emt 0:00:00]} 53. h4 $2 {[%emt 0:00:00][%mdl 8192]} (53. c7 $17 Rc8 54. Kxg3) 53... d4 $19 {[%emt 0:00:00]} 54. c7 {[%emt 0:00:00]} d3 {[%emt 0:02:49]} 55. c8=Q+ {[%emt 0:00:00]} Rxc8 {[%emt 0:00:03]} 56. Rxc8 {[%emt 0:00:00]} d2 {[%emt 0:00:06]} 57. Rd8 {[%emt 0:00:00]} e3 {[%emt 0:00:04] What a bad dream for White.   Weighted Error Value: White=0.73/Black=0.39.  Loses game:     	White=1     	Black=1      Missed win:     	White=1     	Black=1      Mistake:       	White=7     	Black=5      Inaccurate:     	White=4     	Black=5      OK:         	White=12    	Black=18     Best:        	White=5     	Black=2} 0-1

[Event "Serbian League Women 2024"]
[Site "Bajina Basta"]
[Date "2024.10.02"]
[Round "6.3"]
[White "Grozdanovic, Anastasia"]
[Black "Mehmed, Elif"]
[Result "1/2-1/2"]
[ECO "A50"]
[WhiteElo "2041"]
[BlackElo "2228"]
[Annotator "RC"]
[PlyCount "118"]
[EventDate "2024.09.26"]
[EventType "team-tourn"]
[EventCountry "SRB"]
[SourceTitle "playchess.com"]
[Source "ChessBase"]
[SourceQuality "1"]
[TimeControl "40/5400+30:1800+30"]

1. d4 {[%emt 0:00:04]} Nf6 {[%emt 0:00:05]} 2. c4 {[%emt 0:00:04]} b6 {[%emt 0:00:04]} 3. Nc3 {[%emt 0:01:06]} Bb7 {[%emt 0:00:04]} 4. Bf4 {[%emt 0:01:37]} g6 {[%emt 0:02:03]} 5. Qc2 {[%emt 0:00:57]} Bg7 {[%emt 0:01:53]} 6. e4 {[%emt 0:02:04]} d6 {[%emt 0:00:17]} 7. Nf3 {[%emt 0:08:03]} O-O {[%emt 0:03:05]} 8. h3 {[%emt 0:08:29]} Nbd7 {[%emt 0:03:06]} 9. Be3 {[%emt 0:06:01]} e5 {[%emt 0:01:15]} 10. d5 {[%emt 0:01:28]} a5 {[%emt 0:07:18]} 11. Be2 {[%emt 0:06:09]} Nc5 {[%emt 0:02:36]} 12. Nd2 {[%emt 0:03:57]} Ne8 {[%emt 0:10:52]} 13. g4 {[%emt 0:01:13]} c6 {[%emt 0:05:54]} 14. h4 {[%emt 0:12:12]} Nc7 {[%emt 0:00:04]} 15. g5 {[%emt 0:02:15]} Qd7 {[%emt 0:03:10]} 16. h5 {[%emt 0:03:42]} a4 {[%emt 0:09:42]} 17. Bxc5 {[%emt 0:03:02]} dxc5 {[%emt 0:02:13]} 18. Nxa4 {[%emt 0:00:50]} Ra6 {[%emt 0:00:18]} 19. Nc3 {[%emt 0:03:31]} f6 {[%emt 0:03:38]} 20. hxg6 {[%emt 0:02:12]} hxg6 {[%emt 0:00:06]} 21. Qd3 {[%emt 0:01:30]} fxg5 {[%emt 0:01:33]} 22. Qg3 {[%emt 0:01:05]} Rf4 {[%emt 0:06:50]} 23. Qxg5 {[%emt 0:01:28]} Qf7 {[%emt 0:00:12]} 24. Qg2 {[%emt 0:05:59]} Ra8 {[%emt 0:01:20]} 25. Nf3 {[%emt 0:02:58]} Bf6 {[%emt 0:05:36]} 26. O-O-O {[%emt 0:04:13]} cxd5 {[%emt 0:01:20]} 27. cxd5 {[%emt 0:00:34]} Ba6 {[%emt 0:00:19]} 28. Rh6 {[%emt 0:01:55]} Bxe2 {[%emt 0:02:32]} 29. Rxg6+ {[%emt 0:00:50]} Kf8 {[%emt 0:00:09]} 30. Nxe2 {[%emt 0:01:11]} Rxf3 {[%emt 0:00:08]} 31. d6 {[%emt 0:01:25]} Ne6 {[%emt 0:08:28]} 32. Rg1 {[%emt 0:02:35]} Ng5 {[%emt 0:11:55]} 33. Rxg5 {[%emt 0:00:22]} Bxg5+ {[%emt 0:00:28]} 34. Qxg5 {[%emt 0:00:05]} Rf6 {[%emt 0:02:41]} 35. Rh1 {[%emt 0:01:15]} Qg7 {[%emt 0:01:47]} 36. Qxe5 {[%emt 0:00:55]} Re8 {[%emt 0:00:03]} 37. Qd5 {[%emt 0:01:53]} Rxf2 {[%emt 0:01:55]} 38. d7 {[%emt 0:00:23]} Rd8 {[%emt 0:01:24]} 39. Qd6+ {[%emt 0:01:20]} Kf7 {[%emt 0:00:27]} 40. e5 {[%emt 0:04:10]} Qg5+ {[%emt 0:02:36]} 41. Kd1 {[%emt 0:31:21]} Rxe2 {[%emt 0:08:09]} 42. Rf1+ {[%emt 0:00:00]} Kg7 {[%emt 0:04:10]} 43. Kxe2 {[%emt 0:00:00]} Qg4+ {[%emt 0:04:38]} 44. Ke3 {[%emt 0:00:00]} Qg3+ {[%emt 0:03:35]} 45. Kd2 {[%emt 0:00:00]} Qg2+ {[%emt 0:00:37]} 46. Ke1 {[%emt 0:00:00]} Qe4+ {[%emt 0:00:12]} 47. Kd1 {[%emt 0:00:00]} Qa4+ {[%emt 0:06:51]} 48. b3 {[%emt 0:00:00]} Qxd7 {[%emt 0:00:07]} 49. Qxd7+ {[%emt 0:00:00]} Rxd7+ {[%emt 0:00:08]} 50. Kc2 {[%emt 0:00:04]} Rd5 {[%emt 0:01:31]} 51. Re1 {[%emt 0:00:35]} Kf7 {[%emt 0:00:40]} 52. Kc3 {[%emt 0:00:25]} b5 {[%emt 0:00:39]} 53. e6+ {[%emt 0:00:36]} Ke7 {[%emt 0:00:04]} 54. a3 {[%emt 0:00:03]} Rh5 {[%emt 0:00:40]} 55. Re3 {[%emt 0:01:11]} Rg5 {[%emt 0:00:35]} 56. a4 {[%emt 0:00:28]} bxa4 {[%emt 0:05:28]} 57. bxa4 {[%emt 0:00:05]} Rg4 {[%emt 0:00:10]} 58. Re5 {[%emt 0:00:14]} Rxa4 {[%emt 0:00:05]} 59. Rxc5 {[%emt 0:00:03]} Kxe6 {[%emt 0:00:04]} 1/2-1/2

[Event "Serbian League Women 2024"]
[Site "Bajina Basta"]
[Date "2024.10.02"]
[Round "6.4"]
[White "Manakova, Maria"]
[Black "Mihajlovic, Milena"]
[Result "1/2-1/2"]
[ECO "C15"]
[WhiteElo "2185"]
[BlackElo "2065"]
[Annotator "TA"]
[PlyCount "53"]
[EventDate "2024.09.26"]
[EventType "team-tourn"]
[EventCountry "SRB"]
[SourceTitle "playchess.com"]
[Source "ChessBase"]
[SourceQuality "1"]
[TimeControl "40/5400+30:1800+30"]

{[%evp 9,53,91,106,96,110,81,30,10,115,116,118,112,116,58,92,39,141,132,152,135,152,142,142,98,105,52,75,-59,-64,-65,-79,-41,-69,-153,-166,-171,-155,-403,-216,-653,-229,-235,-235,-237,-225,-221]} 1. e4 {[%emt 0:00:01]} e6 {[%emt 0:06:39]} 2. d4 {[%emt 0:00:03]} d5 {[%emt 0:00:04]} 3. Nc3 {[%emt 0:00:05]} Bb4 {[%emt 0:00:15]} 4. Nge2 {[%emt 0:00:16][%cal Bg1e2,Be2c3,Bc3e4][%mdl 32]} c5 {[%emt 0:02:04]} 5. a3 {[%emt 0:00:19]} Bxc3+ {[%emt 0:02:19]} 6. Nxc3 {[%emt 0:00:06]} dxe4 {[%emt 0:00:35]} 7. Nxe4 {[%emt 0:01:20]} (7. dxc5 $6 Qxd1+ 8. Kxd1 Nf6 $14) 7... cxd4 {[%emt 0:02:35]} 8. Qg4 {[%emt 0:04:42] White has an edge.} Qa5+ {[%emt 0:01:24]} (8... Kf8 $1 $11) 9. Bd2 $16 {[%emt 0:03:18][%mdl 1024] White has strong compensation.} Qe5 {[%emt 0:00:23]} 10. O-O-O {[%emt 0:02:50][%cal Oe4d6]} Nc6 {[%emt 0:06:50]} 11. f4 {[%emt 0:12:39]} ({Better is} 11. Bb5 $1 $16 {[%cal Od2b4] Threatens to win with Bb4!} Nge7 12. Bb4) 11... Nh6 {[%emt 0:13:46]} (11... Qxe4 $2 12. Qxg7 Bd7 13. Bd3 $18 (13. Qxh8 O-O-O $18)) 12. Qf3 {[%emt 0:11:31]} (12. fxe5 Nxg4 13. c3 dxc3 14. Bxc3 O-O $17 (14... Ncxe5 $2 15. h3 $18)) (12. Qg3 $16 Qxe4 13. Qxg7) 12... Qd5 {[%emt 0:00:24] [#]} (12... Qc7 $14) 13. Bc4 $1 {[%emt 0:00:48][%mdl 512]} Qd8 {[%emt 0:02:51]} 14. g4 {[%emt 0:14:41][%cal Of4f5] Prevents Nf5. Hoping for f5! White has more active pieces. The black rooks are passive.} O-O {[%emt 0:16:53]} 15. Ng5 {[%emt 0:00:29] And now Qd3 would win.} Kh8 {[%emt 0:03:21]} 16. Qd3 {[%emt 0:03:53][%csl Gg5][%cal Rd3h7]} f5 {[%emt 0:02:06]} 17. Rhg1 {[%emt 0:04:47]} (17. Nxe6 Bxe6 18. Bxe6 Nxg4 $17) (17. gxf5 $16 Nxf5 18. Rde1 (18. Nxe6 Bxe6 19. Bxe6 Qf6 $14) (18. Bxe6 Qf6 $16)) 17... e5 $1 $14 {[%emt 0:03:25] [#]} 18. fxe5 {[%emt 0:19:58]} (18. Nxh7 $1 $16 e4 (18... Kxh7 19. g5 $14) 19. Qg3 Kxh7 20. g5) 18... Nxe5 $15 {[%emt 0:00:14]} 19. Qe2 {[%emt 0:02:37]} Nxc4 {[%emt 0:00:45]} 20. Qxc4 {[%emt 0:00:04][%cal Og5h7]} fxg4 {[%emt 0:01:43] aiming for ...Bf5.} 21. Rgf1 {[%emt 0:06:09]} (21. Ne6 $15 Bxe6 22. Qxe6) 21... Bf5 $17 {[%emt 0:01:15] Strongly threatening ...Rc8.} 22. Ne6 {[%emt 0:06:55]} Rc8 {[%emt 0:12:00]} 23. Rxf5 $2 {[%emt 0:00:20]} (23. Nxd8 $17 {was the only defense.} Rxc4 24. c3 Rxd8 25. Bxh6) 23... Nxf5 {[%emt 0:01:49]} (23... Rxf5 $142 24. Qb4 Qd5 25. Nxg7 Kxg7) 24. Qb5 {[%emt 0:01:56] Inhibits Qd7.} (24. Qd3 Qd5 25. Nxf8 Rxf8 26. Rf1) 24... Qb6 $2 {[%emt 0:02:54]} (24... Qe8 25. Qb3 Rf6) 25. Qxb6 $19 {[%emt 0:00:31] Black is clearly better.} axb6 {[%emt 0:00:04]} 26. Nxf8 {[%emt 0:00:12]} Rxf8 {[%emt 0:00:04]} 27. Bf4 {[%emt 0:01:37] Quite a comeback for Black.   Weighted Error Value: White=0.83/Black=0.59.  Loses game:     	White=1     	---        Mistake:       	White=6     	Black=4      Inaccurate:     	White=1     	Black=1      OK:         	White=7     	Black=6      Best:        	White=1     	Black=4      Strong:       	---       	Black=1      Brilliant:      	White=1     	---} 1/2-1/2

[Event "Serbian League Women 2024"]
[Site "Bajina Basta"]
[Date "2024.10.02"]
[Round "6.5"]
[White "Unuk, Laura"]
[Black "Badelka, Olga"]
[Result "1/2-1/2"]
[ECO "D00"]
[WhiteElo "2316"]
[BlackElo "2430"]
[Annotator "TA"]
[PlyCount "28"]
[EventDate "2024.09.26"]
[EventType "team-tourn"]
[EventCountry "SRB"]
[SourceTitle "playchess.com"]
[Source "ChessBase"]
[SourceQuality "1"]
[TimeControl "40/5400+30:1800+30"]

{[%evp 9,28,0,-7,-2,0,0,0,0,0,0,23,25,27,17,28,27,22,23,29,15,23]} 1. d4 {[%emt 0:00:05]} d5 {[%emt 0:00:08]} 2. Bf4 {[%emt 0:02:04]} Nf6 {[%emt 0:00:10]} 3. Nc3 {[%emt 0:00:15]} c5 {[%emt 0:00:09]} 4. e4 {[%emt 0:00:56]} Nxe4 {[%emt 0:00:25]} 5. Nxe4 {[%emt 0:00:34]} dxe4 {[%emt 0:00:04]} 6. dxc5 {[%emt 0:00:04]} Qa5+ {[%emt 0:00:19]} 7. c3 {[%emt 0:00:06]} Qxc5 {[%emt 0:00:29]} 8. Qa4+ {[%emt 0:00:19]} Nc6 {[%emt 0:00:25]} 9. Qxe4 {[%emt 0:00:06]} Bf5 {[%emt 0:02:15]} 10. Qa4 {[%emt 0:01:28]} e5 {[%emt 0:00:31]} 11. Be3 {[%emt 0:02:54]} Qa5 {[%emt 0:00:05]} 12. Qxa5 {[%emt 0:18:44]} Nxa5 {[%emt 0:00:15]} 13. O-O-O {[%emt 0:00:32]} Be7 {[%emt 0:00:17]} 14. f4 {[%emt 0:01:28]} exf4 {[%emt 0:00:07] A rather calm draw.   Weighted Error Value: White=0.01 (flawless) /Black=0.04 (flawless) .  OK:         	White=5     	Black=5      Best:        	White=1     	---} 1/2-1/2